Workbook

Sheet Beef Repl
B3: KSU-Beef Replacements
B5: An Excel spreadsheet program to evaluate the economic value of purchasing beef replacement females.
L8: Version- 9.13.2016
B28: INTRODUCTION
B29: A spreadsheet program to calculate the net present value of purchasing replacment heifers given expectations for calf selling price, weaning weights, cull cow price, and a target rate of return on investment.
B31: INSTRUCTIONS FOR THE USER:
B32: Be sure to "Enable Content" and "Enable Macros" for the spreadsheet to function correctly.
B33: In the Price and weights and Net Present Value tabs all blue numbers are inputs and all black numbers are calculated from these inputs. Several input cells (i.e., blue number) have a red diamond in the upper right hand corner of the cell. By moving your mouse cursor over this diamond, a brief description of the input will be displayed on the screen.
B40: FOR MORE INFORMATION:
B41: Updated by: | H41: Originally developed by:
B43: Glynn T. Tonsor, Ph.D. | H43: Kevin C. Dhuyvetter, Ph.D.
B44: Agricultural Economist | H44: Former Extension Agricultural Economist
B45: Department of Agricultural Economics | H45: Department of Agricultural Economics
B46: Kansas State University | H46: Kansas State University
B47: gtonsor@k-state.edu
B48: 785-532-1518
B49: Copyright 2016 AgManager.info, K-State Department of Agricultural Economics

Sheet Prices and weights
B2: Calf (average of steer and heifer) and Cull Cow Price Scenarios ($/cwt) | J2: Weaning Weight (steer and heifer) Scenarios
C4: Scenario 1 (S1) | E4: Scenario 2 (S2) | G4: Scenario 3 (S3) | K4: Scenario1 | L4: Scenario2 | M4: Scenario3
C5: FAPRI (As of Aug. '16) | E5: Flat at $25 under Scen 1 | G5: Scenario 1 +10% | K5: Low peak | L5: Constant | M5: High peak
B6: Year | C6: Calf | D6: Cull cow | E6: Calf | F6: Cull cow | G6: Calf | H6: Cull cow | J6: Calf | K6: Lbs/hd | L6: Lbs/hd | M6: Lbs/hd
B7: ='Net present value'!G5 -> 2017 | C7: =150.53+100*$H$20 -> 158.95 | D7: =C7*0.44 -> 69.938 | E7: =C7-25 -> 133.95 | F7: =E7*0.44 -> 58.938 | G7: =C7*1.1 -> 174.845 | H7: =G7*0.44 -> 76.9318 | J7: 1 | K7: 542 | L7: 562 | M7: 537
B8: =B7+1 -> 2018 | C8: =141.38+100*$H$20 -> 149.8 | D8: =C8*0.44 -> 65.912 | E8: =E7 -> 133.95 | F8: =E8*0.44 -> 58.938 | G8: =C8*1.1 -> 164.78 | H8: =G8*0.44 -> 72.5032 | J8: 2 | K8: 552 | L8: =L7 -> 562 | M8: 552
B9: =B8+1 -> 2019 | C9: =135.04+100*$H$20 -> 143.46 | D9: 63.1224 | E9: =E8 -> 133.95 | F9: 58.938 | G9: 157.806 | H9: 69.43464 | J9: 3 | K9: 562 | L9: =L8 -> 562 | M9: 567
B10: 2020 | C10: =134.94+100*$H$20 -> 143.36 | D10: 63.0784 | E10: 133.95 | F10: 58.938 | G10: 157.696 | H10: 69.38624 | J10: 4 | K10: 567 | L10: 562 | M10: 582
B11: 2021 | C11: =140.38+100*$H$20 -> 148.8 | D11: 65.472 | E11: 133.95 | F11: 58.938 | G11: 163.68 | H11: 72.0192 | J11: 5 | K11: 572 | L11: 562 | M11: 582
B12: 2022 | C12: =C11 -> 148.8 | D12: 65.472 | E12: 133.95 | F12: 58.938 | G12: 163.68 | H12: 72.0192 | J12: 6 | K12: 572 | L12: 562 | M12: 577
B13: 2023 | C13: =C12 -> 148.8 | D13: 65.472 | E13: 133.95 | F13: 58.938 | G13: 163.68 | H13: 72.0192 | J13: 7 | K13: 567 | L13: 562 | M13: 567
B14: 2024 | C14: 148.8 | D14: 65.472 | E14: 133.95 | F14: 58.938 | G14: 163.68 | H14: 72.0192 | J14: 8 | K14: 565 | L14: 562 | M14: 557
B15: 2025 | C15: 148.8 | D15: 65.472 | E15: 133.95 | F15: 58.938 | G15: 163.68 | H15: 72.0192 | J15: 9 | K15: 562 | L15: 562 | M15: 552
B16: 2026 | C16: 148.8 | D16: 65.472 | E16: 133.95 | F16: 58.938 | G16: 163.68 | H16: 72.0192 | J16: 10 | K16: 559 | L16: 562 | M16: 547
B17: Average | C17: =AVERAGE(C7:C16) -> 148.837 | D17: 65.48828 | E17: 133.95 | F17: 58.938 | G17: 163.7207 | H17: 72.037108 | J17: Average | K17: =AVERAGE(K7:K16) -> 562 | L17: =AVERAGE(L7:L16) -> 562 | M17: =AVERAGE(M7:M16) -> 562
B19: Average weight for calf price (average of steer and heifer), lbs/head | H19: 525
B20: Price slide (change in price for weight deviation from base), $/lb | H20: 0.0842

Sheet Net present value
B2: Input Assumptions
B3: Number of replacements purchased | G3: 100 | I3: Percent marketable calves (1 - death loss) | N3: 0.97
B4: Year of purchase | G4: 2016 | I4: Annual cow death loss | N4: 0.005
B5: First year for calf sales | G5: 2017 | I5: Annual cull rate | N5: 0.15
B6: Cull cow weight, lbs/hd | G6: 1250
B7: Annual cow costs, $/year | G7: 800 | I7: Annual inflation rate on costs | N7: 0.01
B8: ="Price scenario to use (1-3) ("&IF(G8=1,'Prices and weights'!C5,IF(G8=2,'Prices and weights'!E5,'Prices and weights'!G5))&")" -> Price scenario to use (1-3) (FAPRI (As of Aug. '16)) | G8: 1 | I8: Annual increase in average weaning weight | N8: 0 | AJ8: Sensitivity to discount rate | AM8: Sensitivity to calf/cull prices
B9: Weaning weight scenario to use (1-3) | G9: 1 | I9: Discount rate (interest rate) | N9: 0.075 | R9: Values for sensitivity analysis down below | AJ9: 0.9 | AK9: <= % of base | AM9: 1.1 | AN9: <= % of base
B11: Net Present Value Analysis | R11: Annual cow costs, $/year | X11: Annual Cull Rate | AD11: Annual Cull Rate | AJ11: =N9*AJ9 -> 0.0675
C12: Cows at | F12: Prices, $/cwt | H12: Calf | I12: Cull Income | L12: Cost | M12: Net | N12: Discount | R12: =D33 -> 640 | S12: =E33 -> 720 | T12: =F33 -> 800 | U12: =G33 -> 880 | V12: =H33 -> 960 | X12: =Y12-H72 -> 0.1 | Y12: =Z12-H72 -> 0.125 | Z12: =N5 -> 0.15 | AA12: =Z12+H72 -> 0.175 | AB12: =AA12+H72 -> 0.2 | AD12: =X12 -> 0.1 | AE12: =Y12 -> 0.125 | AF12: =Z12 -> 0.15 | AG12: =AA12 -> 0.175 | AH12: =AB12 -> 0.2 | AJ12: Discount | AM12: Prices, $/cwt | AO12: Calf | AP12: Cull Income | AR12: Net
B13: Year | C13: BOY* | D13: Calf | E13: Calf wt | F13: Calf | G13: Cull | H13: Income | I13: Annual | J13: Age | K13: Cost | L13: Adj. | M13: Income | N13: factor | O13: NPV** | R13: Cost | S13: Cost | T13: Cost | U13: Cost | V13: Cost | X13: Cows at Beginning of Year (BOY) | AD13: Net Income | AJ13: factor | AK13: NPV** | AM13: Calf | AN13: Cull | AO13: Income | AP13: Annual | AQ13: Age | AR13: Income | AS13: NPV**
B14: =G5 -> 2017 | C14: =G3 -> 100 | D14: =IF(G5=B14,1,0) -> 1 | E14: =VLOOKUP(D14,weights,IF(G$9=1,2,IF(G$9=2,3,4)))*(1+N$8)^(B14-G$5) -> 542 | F14: =VLOOKUP(B14,Prices,IF(G$8=1,2,IF(G$8=2,4,6)))+('Prices and weights'!H$19-E14)*'Prices and weights'!H$20 -> 157.5186 | G14: =VLOOKUP(B14,Prices,IF(G$8=1,3,IF(G$8=2,5,7))) -> 69.938 | H14: =IF(B14>=G$5,E14*F14/100*N$3*C14/G$3,0) -> 828.1382876 | I14: =IF(B14>=G$5,G$6*G14/100*(N$5*C14/G$3),0) -> 131.13375 | J14: =IF(B14>=G$5,G$6*G14/100*(C14*(1-N$4-N$5))/G$3,0) -> 738.720125 | K14: =G$7*(1+N$7)^(B14-G$4)*C14/G$3 -> 808 | L14: 0 | M14: =H14+I14-K14-L14 -> 151.2720376 | N14: =1/(1+N$9)^(B14-G$4) -> 0.9302325581 | O14: =SUMPRODUCT(M$14:M14,N$14:N14)+J14*N14 -> 827.8996862 | R14: =D$33*(1+N$7)^(B14-G$4)*C14/G$3 -> 646.4 | S14: =E$33*(1+N$7)^(B14-G$4)*C14/G$3 -> 727.2 | T14: =F$33*(1+N$7)^(B14-G$4)*C14/G$3 -> 808 | U14: =G$33*(1+N$7)^(B14-G$4)*C14/G$3 -> 888.8 | V14: =H$33*(1+N$7)^(B14-G$4)*C14/G$3 -> 969.6 | X14: =$G3 -> 100 | Y14: =$G3 -> 100 | Z14: =$G3 -> 100 | AA14: =$G3 -> 100 | AB14: =$G3 -> 100 | AD14: =IF(B14>=G$5,E14*F14/100*N$3*X14/G$3,0)+IF(B14>=G$5,G$6*G14/100*(AD$12*X14/G$3),0)-G$7*(1+N$7)^(B14-G$4)*X14/G$3-L14 -> 107.5607876 | AE14: =IF(B14>=G$5,E14*F14/100*N$3*Y14/G$3,0)+IF(B14>=G$5,G$6*G14/100*(AE$12*Y14/G$3),0)-G$7*(1+N$7)^(B14-G$4)*Y14/G$3-L14 -> 129.4164126 | AF14: =IF(B14>=G$5,E14*F14/100*N$3*Z14/G$3,0)+IF(B14>=G$5,G$6*G14/100*(AF$12*Z14/G$3),0)-G$7*(1+N$7)^(B14-G$4)*Z14/G$3-L14 -> 151.2720376 | AG14: =IF(B14>=G$5,E14*F14/100*N$3*AA14/G$3,0)+IF(B14>=G$5,G$6*G14/100*(AG$12*AA14/G$3),0)-G$7*(1+N$7)^(B14-G$4)*AA14/G$3-L14 -> 173.1276626 | AH14: =IF(B14>=G$5,E14*F14/100*N$3*AB14/G$3,0)+IF(B14>=G$5,G$6*G14/100*(AH$12*AB14/G$3),0)-G$7*(1+N$7)^(B14-G$4)*AB14/G$3-L14 -> 194.9832876 | AJ14: =1/(1+AJ$11)^(B14-G$4) -> 0.9367681499 | AK14: =SUMPRODUCT(M$14:M14,AJ$14:AJ14)+J14*AJ14 -> 833.7163116 | AM14: =VLOOKUP(B14,Prices,IF(G$8=1,2,IF(G$8=2,4,6)))*AM$9+('Prices and weights'!H$19-E14)*'Prices and weights'!H$20 -> 173.4136 | AN14: =G14*AM$9 -> 76.9318 | AO14: =IF(B14>=G$5,E14*AM14/100*N$3*C14/G$3,0) -> 911.7046606 | AP14: =IF(B14>=G$5,G$6*AN14/100*(N$5*C14/G$3),0) -> 144.247125 | AQ14: =IF(B14>=G$5,G$6*AN14/100*(C14*(1-N$4-N$5))/G$3,0) -> 812.5921375 | AR14: =AO14+AP14-K14-L14 -> 247.9517856 | AS14: =SUMPRODUCT(AR$14:AR14,N$14:N14)+AQ14*N14 -> 986.5524866
B15: =+B14+1 -> 2018 | C15: =C14*(1-N$4-N$5) -> 84.5 | D15: =IF(D14>0,D14+1,IF(G$5=B15,1,0)) -> 2 | E15: 552 | F15: =VLOOKUP(B15,Prices,IF(G$8=1,2,IF(G$8=2,4,6)))+('Prices and weights'!H$19-E15)*'Prices and weights'!H$20 -> 147.5266 | G15: =VLOOKUP(B15,Prices,IF(G$8=1,3,IF(G$8=2,5,7))) -> 65.912 | H15: =IF(B15>=G$5,E15*F15/100*N$3*C15/G$3,0) -> 667.4793808 | I15: =G$6*G15/100*(N$5*C15/G$3) -> 104.429325 | J15: =IF(B15>=G$5,G$6*G15/100*(C15*(1-N$4-N$5))/G$3,0) -> 588.2851975 | K15: =G$7*(1+N$7)^(B15-G$4)*C15/G$3 -> 689.5876 | L15: 0 | M15: =H15+I15-K15-L15 -> 82.32110585 | N15: 0.8653326122 | O15: =SUMPRODUCT(M$14:M15,N$14:N15)+J15*N15 -> 721.0156788 | R15: 551.67008 | S15: 620.62884 | T15: 689.5876 | U15: 758.54636 | V15: 827.50512 | X15: =X14*(1-$N$4-X$12) -> 89.5 | Y15: =Y14*(1-$N$4-Y$12) -> 87 | Z15: =Z14*(1-$N$4-Z$12) -> 84.5 | AA15: =AA14*(1-$N$4-AA$12) -> 82 | AB15: =AB14*(1-$N$4-AB$12) -> 79.5 | AD15: 50.3226522 | AE15: 66.83681652 | AF15: 82.32110585 | AG15: 96.77552017 | AH15: 110.2000595 | AJ15: 0.8775345666 | AK15: =SUMPRODUCT(M$14:M15,AJ$14:AJ15)+J15*AJ15 -> 730.1870386 | AM15: =VLOOKUP(B15,Prices,IF(G$8=1,2,IF(G$8=2,4,6)))*AM$9+('Prices and weights'!H$19-E15)*'Prices and weights'!H$20 -> 162.5066 | AN15: 72.5032 | AO15: 735.2559115 | AP15: 114.8722575 | AQ15: 647.1137172 | AR15: 160.540569 | AS15: =SUMPRODUCT(AR$14:AR15,N$14:N15)+AQ15*N15 -> 929.5424171
B16: 2019 | C16: 71.4025 | D16: =IF(D15>0,D15+1,IF(G$5=B16,1,0)) -> 3 | E16: 562 | F16: =VLOOKUP(B16,Prices,IF(G$8=1,2,IF(G$8=2,4,6)))+('Prices and weights'!H$19-E16)*'Prices and weights'!H$20 -> 140.3446 | G16: 63.1224 | H16: 546.2823573 | I16: =G$6*G16/100*(N$5*C16/G$3) -> 84.50807186 | J16: 476.0621382 | K16: 588.5285372 | L16: 0 | M16: 42.26189195 | N16: 0.8049605695 | O16: =SUMPRODUCT(M$14:M16,N$14:N16)+J16*N16 -> 629.1837186 | R16: 470.8228298 | S16: 529.6756835 | T16: 588.5285372 | U16: 647.3813909 | V16: 706.2342447 | X16: =X15*(1-$N$4-X$12) -> 80.1025 | Y16: 75.69 | Z16: 71.4025 | AA16: 67.24 | AB16: 63.2025 | AD16: 15.80963212 | AE16: 29.8691681 | AF16: 42.26189195 | AG16: 53.06177524 | AH16: 62.34278954 | AJ16: 0.8220464324 | AK16: =SUMPRODUCT(M$14:M16,AJ$14:AJ16)+J16*AJ16 -> 640.0328626 | AM16: =VLOOKUP(B16,Prices,IF(G$8=1,2,IF(G$8=2,4,6)))*AM$9+('Prices and weights'!H$19-E16)*'Prices and weights'!H$20 -> 154.6906 | AN16: 69.43464 | AO16: 602.1232425 | AP16: 92.95887905 | AQ16: 523.668352 | AR16: 106.5535843 | AS16: =SUMPRODUCT(AR$14:AR16,N$14:N16)+AQ16*N16 -> 876.8776226
B17: 2020 | C17: 60.3351125 | D17: 4 | E17: 567 | F17: =VLOOKUP(B17,Prices,IF(G$8=1,2,IF(G$8=2,4,6)))+('Prices and weights'!H$19-E17)*'Prices and weights'!H$20 -> 139.8236 | G17: 63.0784 | H17: 463.9865587 | I17: 71.35954426 | J17: 401.9920993 | K17: 502.2796801 | L17: 0 | M17: 33.06642288 | N17: 0.7488005298 | O17: =SUMPRODUCT(M$14:M17,N$14:N17)+J17*N17 -> 571.7445206 | R17: 401.8237441 | S17: 452.0517121 | T17: 502.2796801 | U17: 552.5076481 | V17: 602.7356161 | X17: 71.6917375 | Y17: 65.8503 | Z17: 60.3351125 | AA17: 55.1368 | AB17: 50.2459875 | AD17: 11.02662629 | AE17: 23.10858873 | AF17: 33.06642288 | AG17: 41.08607402 | AH17: 47.34609542 | AJ17: 0.7700669156 | AK17: =SUMPRODUCT(M$14:M17,AJ$14:AJ17)+J17*AJ17 -> 583.7118546 | AM17: =VLOOKUP(B17,Prices,IF(G$8=1,2,IF(G$8=2,4,6)))*AM$9+('Prices and weights'!H$19-E17)*'Prices and weights'!H$20 -> 154.1596 | AN17: 69.38624 | AO17: 511.5587233 | AP17: 78.49549868 | AQ17: 442.1913092 | AR17: 87.77454185 | AS17: =SUMPRODUCT(AR$14:AR17,N$14:N17)+AQ17*N17 -> 852.1839578
B18: 2021 | C18: 50.98317006 | D18: 5 | E18: 572 | F18: =VLOOKUP(B18,Prices,IF(G$8=1,2,IF(G$8=2,4,6)))+('Prices and weights'!H$19-E18)*'Prices and weights'!H$20 -> 144.8426 | G18: 65.472 | H18: 409.7235348 | I18: 62.58693957 | J18: 352.5730929 | K18: 428.670593 | L18: 0 | M18: 43.63988144 | N18: 0.6965586324 | O18: =SUMPRODUCT(M$14:M18,N$14:N18)+J18*N18 -> 546.7181912 | R18: 342.9364744 | S18: 385.8035337 | T18: 428.670593 | U18: 471.5376523 | V18: 514.4047116 | X18: 64.16410506 | Y18: 57.289761 | Z18: 50.98317006 | AA18: 45.212176 | AB18: 39.94556006 | AD18: 28.66636736 | AE18: 37.31662639 | AF18: 43.63988144 | AG18: 47.95051553 | AH18: 50.53778112 | AJ18: 0.7213741598 | AK18: =SUMPRODUCT(M$14:M18,AJ$14:AJ18)+J18*AJ18 -> 559.96884 | AM18: =VLOOKUP(B18,Prices,IF(G$8=1,2,IF(G$8=2,4,6)))*AM$9+('Prices and weights'!H$19-E18)*'Prices and weights'!H$20 -> 159.7226 | AN18: 72.0192 | AO18: 451.8153379 | AP18: 68.84563353 | AQ18: 387.8304022 | AR18: 91.99037848 | AS18: =SUMPRODUCT(AR$14:AR18,N$14:N18)+AQ18*N18 -> 855.2941779
B19: 2022 | C19: 43.0807787 | D19: 6 | E19: 572 | F19: =VLOOKUP(B19,Prices,IF(G$8=1,2,IF(G$8=2,4,6)))+('Prices and weights'!H$19-E19)*'Prices and weights'!H$20 -> 144.8426 | G19: 65.472 | H19: 346.2163869 | I19: 52.88596394 | J19: 297.9242635 | K19: 365.8489176 | L19: 0 | M19: 33.2534333 | N19: 0.6479615185 | O19: =SUMPRODUCT(M$14:M19,N$14:N19)+J19*N19 -> 515.7207631 | R19: 292.6791341 | S19: 329.2640258 | T19: 365.8489176 | U19: 402.4338093 | V19: 439.0187011 | X19: 57.42687403 | Y19: 49.84209207 | Z19: 43.0807787 | AA19: 37.07398432 | AB19: 31.75672025 | AD19: 20.82790104 | AE19: 28.27470178 | AF19: 33.2534333 | AG19: 36.20221233 | AH19: 37.50740542 | AJ19: 0.6757603371 | AK19: =SUMPRODUCT(M$14:M19,AJ$14:AJ19)+J19*AJ19 -> 529.4284734 | AM19: =VLOOKUP(B19,Prices,IF(G$8=1,2,IF(G$8=2,4,6)))*AM$9+('Prices and weights'!H$19-E19)*'Prices and weights'!H$20 -> 159.7226 | AN19: 72.0192 | AO19: 381.7839606 | AP19: 58.17456033 | AQ19: 327.7166899 | AR19: 74.10960331 | AS19: =SUMPRODUCT(AR$14:AR19,N$14:N19)+AQ19*N19 -> 845.5155385
B20: 2023 | C20: 36.403258 | D20: 7 | E20: 567 | F20: =VLOOKUP(B20,Prices,IF(G$8=1,2,IF(G$8=2,4,6)))+('Prices and weights'!H$19-E20)*'Prices and weights'!H$20 -> 145.2636 | G20: 65.472 | H20: 290.8384689 | I20: 44.68863953 | J20: 251.7460027 | K20: 312.2337587 | L20: 0 | M20: 23.29334977 | N20: 0.6027549009 | O20: =SUMPRODUCT(M$14:M20,N$14:N20)+J20*N20 -> 488.4586226 | R20: 249.787007 | S20: 281.0103828 | T20: 312.2337587 | U20: 343.4571346 | V20: 374.6805104 | X20: 51.39705226 | Y20: 43.3626201 | Z20: 36.403258 | AA20: 30.40066714 | AB20: 25.2465926 | AD20: 11.85575391 | AE20: 18.87444416 | AF20: 23.29334977 | AG20: 25.67244894 | AH20: 26.48544087 | AJ20: 0.6330307607 | AK20: =SUMPRODUCT(M$14:M20,AJ$14:AJ20)+J20*AJ20 -> 502.2114432 | AM20: =VLOOKUP(B20,Prices,IF(G$8=1,2,IF(G$8=2,4,6)))*AM$9+('Prices and weights'!H$19-E20)*'Prices and weights'!H$20 -> 160.1436 | AN20: 72.0192 | AO20: 320.6303536 | AP20: 49.15750348 | AQ20: 276.9206029 | AR20: 57.55409839 | AS20: =SUMPRODUCT(AR$14:AR20,N$14:N20)+AQ20*N20 -> 834.7739999
B21: 2024 | C21: 30.76075301 | D21: 8 | E21: 565 | F21: =VLOOKUP(B21,Prices,IF(G$8=1,2,IF(G$8=2,4,6)))+('Prices and weights'!H$19-E21)*'Prices and weights'!H$20 -> 145.432 | G21: 65.472 | H21: 245.1755292 | I21: 37.7619004 | J21: 212.7253722 | K21: 266.4759014 | L21: 0 | M21: 16.46152823 | N21: 0.5607022334 | O21: =SUMPRODUCT(M$14:M21,N$14:N21)+J21*N21 -> 465.2230927 | R21: 213.1807211 | S21: 239.8283112 | T21: 266.4759014 | U21: 293.1234915 | V21: 319.7710816 | X21: 46.00036177 | Y21: 37.72547949 | Z21: 30.76075301 | AA21: 24.92854706 | AB21: 20.07104112 | AD21: 5.793612853 | AE21: 12.47004841 | AF21: 16.46152823 | AG21: 18.44082077 | AH21: 18.95402977 | AJ21: 0.5930030546 | AK21: =SUMPRODUCT(M$14:M21,AJ$14:AJ21)+J21*AJ21 -> 478.7570116 | AM21: =VLOOKUP(B21,Prices,IF(G$8=1,2,IF(G$8=2,4,6)))*AM$9+('Prices and weights'!H$19-E21)*'Prices and weights'!H$20 -> 160.312 | AN21: 72.0192 | AO21: 270.2608741 | AP21: 41.53809044 | AQ21: 233.9979095 | AR21: 45.32306313 | AS21: =SUMPRODUCT(AR$14:AR21,N$14:N21)+AQ21*N21 -> 824.4746425
B22: 2025 | C22: =C21*(1-N$4-N$5) -> 25.9928363 | D22: =IF(D21>0,D21+1,IF(G$5=B22,1,0)) -> 9 | E22: =VLOOKUP(D22,weights,IF(G$9=1,2,IF(G$9=2,3,4)))*(1+N$8)^(B22-G$5) -> 562 | F22: =VLOOKUP(B22,Prices,IF(G$8=1,2,IF(G$8=2,4,6)))+('Prices and weights'!H$19-E22)*'Prices and weights'!H$20 -> 145.6846 | G22: =VLOOKUP(B22,Prices,IF(G$8=1,3,IF(G$8=2,5,7))) -> 65.472 | H22: =IF(B22>=G$5,E22*F22/100*N$3*C22/G$3,0) -> 206.4312143 | I22: =G$6*G22/100*(N$5*C22/G$3) -> 31.90880584 | J22: 179.7529395 | K22: =G$7*(1+N$7)^(B22-G$4)*C22/G$3 -> 227.423858 | L22: 0 | M22: =H22+I22-K22-L22 -> 10.91616215 | N22: =1/(1+N$9)^(B22-G$4) -> 0.5215834729 | O22: =SUMPRODUCT(M$14:M22,N$14:N22)+J22*N22 -> 445.3973536 | R22: 181.9390864 | S22: 204.6814722 | T22: 227.423858 | U22: 250.1662438 | V22: 272.9086296 | X22: 41.17032378 | Y22: 32.82116715 | Z22: 25.9928363 | AA22: 20.44140859 | AB22: 15.95647769 | AD22: 0.443326284 | AE22: 7.068632506 | AF22: 10.91616215 | AG22: 12.76705178 | AH22: 13.23060233 | AJ22: 0.5555063743 | AK22: =SUMPRODUCT(M$14:M22,AJ$14:AJ22)+J22*AJ22 -> 458.5281175 | AM22: =VLOOKUP(B22,Prices,IF(G$8=1,2,IF(G$8=2,4,6)))*AM$9+('Prices and weights'!H$19-E22)*'Prices and weights'!H$20 -> 160.5646 | AN22: 72.0192 | AO22: 227.5157797 | AP22: 35.09968642 | AQ22: 197.7282335 | AR22: 35.19160808 | AS22: =SUMPRODUCT(AR$14:AR22,N$14:N22)+AQ22*N22 -> 814.758632
B23: 2026 | C23: =C22*(1-N$4-N$5) -> 21.96394667 | D23: =IF(D22>0,D22+1,IF(G$5=B23,1,0)) -> 10 | E23: =VLOOKUP(D23,weights,IF(G$9=1,2,IF(G$9=2,3,4)))*(1+N$8)^(B23-G$5) -> 559 | F23: =VLOOKUP(B23,Prices,IF(G$8=1,2,IF(G$8=2,4,6)))+('Prices and weights'!H$19-E23)*'Prices and weights'!H$20 -> 145.9372 | G23: =VLOOKUP(B23,Prices,IF(G$8=1,3,IF(G$8=2,5,7))) -> 65.472 | H23: =IF(B23>=G$5,E23*F23/100*N$3*C23/G$3,0) -> 173.804066 | I23: =G$6*G23/100*(N$5*C23/G$3) -> 26.96294093 | J23: 151.8912339 | K23: =G$7*(1+N$7)^(B23-G$4)*C23/G$3 -> 194.0948916 | L23: 0 | M23: =H23+I23-K23-L23 -> 6.672115302 | N23: =1/(1+N$9)^(B23-G$4) -> 0.4851939283 | O23: =SUMPRODUCT(M$14:M23,N$14:N23)+J23*N23 -> 428.5751654 | R23: 155.2759133 | S23: 174.6854025 | T23: 194.0948916 | U23: 213.5043808 | V23: 232.91387 | X23: 36.84743979 | Y23: 28.55441542 | Z23: 21.96394667 | AA23: 16.76195504 | AB23: 12.68539976 | AD23: -3.884612145 | AE23: 2.831906774 | AF23: 6.672115302 | AG23: 8.521372175 | AH23: 9.044382946 | AJ23: 0.5203806785 | AK23: =SUMPRODUCT(M$14:M23,AJ$14:AJ23)+J23*AJ23 -> 441.187517 | AM23: =VLOOKUP(B23,Prices,IF(G$8=1,2,IF(G$8=2,4,6)))*AM$9+('Prices and weights'!H$19-E23)*'Prices and weights'!H$20 -> 160.8172 | AN23: 72.0192 | AO23: 191.5254181 | AP23: 29.65923503 | AQ23: 167.0803573 | AR23: 27.08976147 | AS23: =SUMPRODUCT(AR$14:AR23,N$14:N23)+AQ23*N23 -> 805.8370159
B24: * BOY = Beginning of year | E24: =AVERAGE(E14:E23) -> 562 | F24: =AVERAGE(F14:F23) -> 145.7216 | G24: =AVERAGE(G14:G23) -> 65.48828 | O24: ** Net present value if replacement is sold in this year
B26: The Net Present Value (NPV) reflects the amount that could be paid for a replacement such that the rate of return from the investment would be exactly equal to the discount rate given all of the assumptions used in the analysis. If you have a targeted rate of return for investing in replacements, enter that as the discount rate.
B31: Sensitivity Analysis of NPV to varying annual cow costs
D32: Annual cow costs, $/year
D33: =E33-H46 -> 640 | E33: =F33-H46 -> 720 | F33: =G7 -> 800 | G33: =F33+H46 -> 880 | H33: =G33+H46 -> 960
B34: Year | C34: Calf | D34: NPV** | E34: NPV** | F34: NPV** | G34: NPV** | H34: NPV**
B35: =B14 -> 2017 | C35: =D14 -> 1 | D35: =SUMPRODUCT(M$14:M14,N$14:N14)+J14*N14+SUMPRODUCT(K$14:K14,N$14:N14)-SUMPRODUCT(R$14:R14,N$14:N14) -> 978.2252676 | E35: =SUMPRODUCT(M$14:M14,N$14:N14)+J14*N14+SUMPRODUCT(K$14:K14,N$14:N14)-SUMPRODUCT(S$14:S14,N$14:N14) -> 903.0624769 | F35: =SUMPRODUCT(M$14:M14,N$14:N14)+J14*N14+SUMPRODUCT(K$14:K14,N$14:N14)-SUMPRODUCT(T$14:T14,N$14:N14) -> 827.8996862 | G35: =SUMPRODUCT(M$14:M14,N$14:N14)+J14*N14+SUMPRODUCT(K$14:K14,N$14:N14)-SUMPRODUCT(U$14:U14,N$14:N14) -> 752.7368955 | H35: =SUMPRODUCT(M$14:M14,N$14:N14)+J14*N14+SUMPRODUCT(K$14:K14,N$14:N14)-SUMPRODUCT(V$14:V14,N$14:N14) -> 677.5741048
B36: =+B35+1 -> 2018 | C36: =D15 -> 2 | D36: =SUMPRODUCT(M$14:M15,N$14:N15)+J15*N15+SUMPRODUCT(K$14:K15,N$14:N15)-SUMPRODUCT(R$14:R15,N$14:N15) -> 990.685788 | E36: =SUMPRODUCT(M$14:M15,N$14:N15)+J15*N15+SUMPRODUCT(K$14:K15,N$14:N15)-SUMPRODUCT(S$14:S15,N$14:N15) -> 855.8507334 | F36: =SUMPRODUCT(M$14:M15,N$14:N15)+J15*N15+SUMPRODUCT(K$14:K15,N$14:N15)-SUMPRODUCT(T$14:T15,N$14:N15) -> 721.0156788 | G36: =SUMPRODUCT(M$14:M15,N$14:N15)+J15*N15+SUMPRODUCT(K$14:K15,N$14:N15)-SUMPRODUCT(U$14:U15,N$14:N15) -> 586.1806242 | H36: =SUMPRODUCT(M$14:M15,N$14:N15)+J15*N15+SUMPRODUCT(K$14:K15,N$14:N15)-SUMPRODUCT(V$14:V15,N$14:N15) -> 451.3455696
B37: 2019 | C37: 3 | D37: =SUMPRODUCT(M$14:M16,N$14:N16)+J16*N16+SUMPRODUCT(K$14:K16,N$14:N16)-SUMPRODUCT(R$14:R16,N$14:N16) -> 993.6022811 | E37: =SUMPRODUCT(M$14:M16,N$14:N16)+J16*N16+SUMPRODUCT(K$14:K16,N$14:N16)-SUMPRODUCT(S$14:S16,N$14:N16) -> 811.3929999 | F37: =SUMPRODUCT(M$14:M16,N$14:N16)+J16*N16+SUMPRODUCT(K$14:K16,N$14:N16)-SUMPRODUCT(T$14:T16,N$14:N16) -> 629.1837186 | G37: =SUMPRODUCT(M$14:M16,N$14:N16)+J16*N16+SUMPRODUCT(K$14:K16,N$14:N16)-SUMPRODUCT(U$14:U16,N$14:N16) -> 446.9744373 | H37: =SUMPRODUCT(M$14:M16,N$14:N16)+J16*N16+SUMPRODUCT(K$14:K16,N$14:N16)-SUMPRODUCT(V$14:V16,N$14:N16) -> 264.765156
B38: 2020 | C38: 4 | D38: =SUMPRODUCT(M$14:M17,N$14:N17)+J17*N17+SUMPRODUCT(K$14:K17,N$14:N17)-SUMPRODUCT(R$14:R17,N$14:N17) -> 1011.384541 | E38: =SUMPRODUCT(M$14:M17,N$14:N17)+J17*N17+SUMPRODUCT(K$14:K17,N$14:N17)-SUMPRODUCT(S$14:S17,N$14:N17) -> 791.564531 | F38: =SUMPRODUCT(M$14:M17,N$14:N17)+J17*N17+SUMPRODUCT(K$14:K17,N$14:N17)-SUMPRODUCT(T$14:T17,N$14:N17) -> 571.7445206 | G38: =SUMPRODUCT(M$14:M17,N$14:N17)+J17*N17+SUMPRODUCT(K$14:K17,N$14:N17)-SUMPRODUCT(U$14:U17,N$14:N17) -> 351.9245103 | H38: =SUMPRODUCT(M$14:M17,N$14:N17)+J17*N17+SUMPRODUCT(K$14:K17,N$14:N17)-SUMPRODUCT(V$14:V17,N$14:N17) -> 132.1045
B39: 2021 | C39: 5 | D39: =SUMPRODUCT(M$14:M18,N$14:N18)+J18*N18+SUMPRODUCT(K$14:K18,N$14:N18)-SUMPRODUCT(R$14:R18,N$14:N18) -> 1046.077052 | E39: =SUMPRODUCT(M$14:M18,N$14:N18)+J18*N18+SUMPRODUCT(K$14:K18,N$14:N18)-SUMPRODUCT(S$14:S18,N$14:N18) -> 796.3976217 | F39: =SUMPRODUCT(M$14:M18,N$14:N18)+J18*N18+SUMPRODUCT(K$14:K18,N$14:N18)-SUMPRODUCT(T$14:T18,N$14:N18) -> 546.7181912 | G39: =SUMPRODUCT(M$14:M18,N$14:N18)+J18*N18+SUMPRODUCT(K$14:K18,N$14:N18)-SUMPRODUCT(U$14:U18,N$14:N18) -> 297.0387607 | H39: =SUMPRODUCT(M$14:M18,N$14:N18)+J18*N18+SUMPRODUCT(K$14:K18,N$14:N18)-SUMPRODUCT(V$14:V18,N$14:N18) -> 47.35933017
B40: 2022 | C40: 6 | D40: =SUMPRODUCT(M$14:M19,N$14:N19)+J19*N19+SUMPRODUCT(K$14:K19,N$14:N19)-SUMPRODUCT(R$14:R19,N$14:N19) -> 1062.490828 | E40: =SUMPRODUCT(M$14:M19,N$14:N19)+J19*N19+SUMPRODUCT(K$14:K19,N$14:N19)-SUMPRODUCT(S$14:S19,N$14:N19) -> 789.1057957 | F40: =SUMPRODUCT(M$14:M19,N$14:N19)+J19*N19+SUMPRODUCT(K$14:K19,N$14:N19)-SUMPRODUCT(T$14:T19,N$14:N19) -> 515.7207631 | G40: =SUMPRODUCT(M$14:M19,N$14:N19)+J19*N19+SUMPRODUCT(K$14:K19,N$14:N19)-SUMPRODUCT(U$14:U19,N$14:N19) -> 242.3357306 | H40: =SUMPRODUCT(M$14:M19,N$14:N19)+J19*N19+SUMPRODUCT(K$14:K19,N$14:N19)-SUMPRODUCT(V$14:V19,N$14:N19) -> -31.04930195
B41: 2023 | C41: 7 | D41: =SUMPRODUCT(M$14:M20,N$14:N20)+J20*N20+SUMPRODUCT(K$14:K20,N$14:N20)-SUMPRODUCT(R$14:R20,N$14:N20) -> 1072.868773 | E41: =SUMPRODUCT(M$14:M20,N$14:N20)+J20*N20+SUMPRODUCT(K$14:K20,N$14:N20)-SUMPRODUCT(S$14:S20,N$14:N20) -> 780.663698 | F41: =SUMPRODUCT(M$14:M20,N$14:N20)+J20*N20+SUMPRODUCT(K$14:K20,N$14:N20)-SUMPRODUCT(T$14:T20,N$14:N20) -> 488.4586226 | G41: =SUMPRODUCT(M$14:M20,N$14:N20)+J20*N20+SUMPRODUCT(K$14:K20,N$14:N20)-SUMPRODUCT(U$14:U20,N$14:N20) -> 196.2535472 | H41: =SUMPRODUCT(M$14:M20,N$14:N20)+J20*N20+SUMPRODUCT(K$14:K20,N$14:N20)-SUMPRODUCT(V$14:V20,N$14:N20) -> -95.95152816
B42: 2024 | C42: 8 | D42: =SUMPRODUCT(M$14:M21,N$14:N21)+J21*N21+SUMPRODUCT(K$14:K21,N$14:N21)-SUMPRODUCT(R$14:R21,N$14:N21) -> 1079.51597 | E42: =SUMPRODUCT(M$14:M21,N$14:N21)+J21*N21+SUMPRODUCT(K$14:K21,N$14:N21)-SUMPRODUCT(S$14:S21,N$14:N21) -> 772.3695313 | F42: =SUMPRODUCT(M$14:M21,N$14:N21)+J21*N21+SUMPRODUCT(K$14:K21,N$14:N21)-SUMPRODUCT(T$14:T21,N$14:N21) -> 465.2230927 | G42: =SUMPRODUCT(M$14:M21,N$14:N21)+J21*N21+SUMPRODUCT(K$14:K21,N$14:N21)-SUMPRODUCT(U$14:U21,N$14:N21) -> 158.076654 | H42: =SUMPRODUCT(M$14:M21,N$14:N21)+J21*N21+SUMPRODUCT(K$14:K21,N$14:N21)-SUMPRODUCT(V$14:V21,N$14:N21) -> -149.0697847
B43: 2025 | C43: 9 | D43: =SUMPRODUCT(M$14:M22,N$14:N22)+J22*N22+SUMPRODUCT(K$14:K22,N$14:N22)-SUMPRODUCT(R$14:R22,N$14:N22) -> 1083.414336 | E43: =SUMPRODUCT(M$14:M22,N$14:N22)+J22*N22+SUMPRODUCT(K$14:K22,N$14:N22)-SUMPRODUCT(S$14:S22,N$14:N22) -> 764.4058448 | F43: =SUMPRODUCT(M$14:M22,N$14:N22)+J22*N22+SUMPRODUCT(K$14:K22,N$14:N22)-SUMPRODUCT(T$14:T22,N$14:N22) -> 445.3973536 | G43: =SUMPRODUCT(M$14:M22,N$14:N22)+J22*N22+SUMPRODUCT(K$14:K22,N$14:N22)-SUMPRODUCT(U$14:U22,N$14:N22) -> 126.3888623 | H43: =SUMPRODUCT(M$14:M22,N$14:N22)+J22*N22+SUMPRODUCT(K$14:K22,N$14:N22)-SUMPRODUCT(V$14:V22,N$14:N22) -> -192.6196289
B44: 2026 | C44: 10 | D44: =SUMPRODUCT(M$14:M23,N$14:N23)+J23*N23+SUMPRODUCT(K$14:K23,N$14:N23)-SUMPRODUCT(R$14:R23,N$14:N23) -> 1085.42688 | E44: =SUMPRODUCT(M$14:M23,N$14:N23)+J23*N23+SUMPRODUCT(K$14:K23,N$14:N23)-SUMPRODUCT(S$14:S23,N$14:N23) -> 757.0010229 | F44: =SUMPRODUCT(M$14:M23,N$14:N23)+J23*N23+SUMPRODUCT(K$14:K23,N$14:N23)-SUMPRODUCT(T$14:T23,N$14:N23) -> 428.5751654 | G44: =SUMPRODUCT(M$14:M23,N$14:N23)+J23*N23+SUMPRODUCT(K$14:K23,N$14:N23)-SUMPRODUCT(U$14:U23,N$14:N23) -> 100.1493079 | H44: =SUMPRODUCT(M$14:M23,N$14:N23)+J23*N23+SUMPRODUCT(K$14:K23,N$14:N23)-SUMPRODUCT(V$14:V23,N$14:N23) -> -228.2765497
B45: ** Net present value if replacement is sold in this year
B46: Increment to use for annual costs/cow | H46: =G7*0.1 -> 80
B48: Values to include in chart (Calf number)
D49: Annual cow costs, $/year
B50: Calves | D50: =D33 -> 640 | E50: =E33 -> 720 | F50: =F33 -> 800 | G50: =G33 -> 880 | H50: =H33 -> 960
B51: 4 | C51: =B51&" calves" -> 4 calves | D51: =VLOOKUP($B51,$C$35:$H$44,2) -> 1011.384541 | E51: =VLOOKUP($B51,$C$35:$H$44,3) -> 791.564531 | F51: =VLOOKUP($B51,$C$35:$H$44,4) -> 571.7445206 | G51: =VLOOKUP($B51,$C$35:$H$44,5) -> 351.9245103 | H51: =VLOOKUP($B51,$C$35:$H$44,6) -> 132.1045
B52: 7 | C52: =B52&" calves" -> 7 calves | D52: =VLOOKUP($B52,$C$35:$H$44,2) -> 1072.868773 | E52: =VLOOKUP($B52,$C$35:$H$44,3) -> 780.663698 | F52: =VLOOKUP($B52,$C$35:$H$44,4) -> 488.4586226 | G52: =VLOOKUP($B52,$C$35:$H$44,5) -> 196.2535472 | H52: =VLOOKUP($B52,$C$35:$H$44,6) -> -95.95152816
B53: 10 | C53: =B53&" calves" -> 10 calves | D53: =VLOOKUP($B53,$C$35:$H$44,2) -> 1085.42688 | E53: =VLOOKUP($B53,$C$35:$H$44,3) -> 757.0010229 | F53: =VLOOKUP($B53,$C$35:$H$44,4) -> 428.5751654 | G53: =VLOOKUP($B53,$C$35:$H$44,5) -> 100.1493079 | H53: =VLOOKUP($B53,$C$35:$H$44,6) -> -228.2765497
B57: Sensitivity Analysis of NPV to varying annual cow cull rates
D58: Annual cow cull rate, %
D59: =E59-H72 -> 0.1 | E59: =F59-H72 -> 0.125 | F59: =N5 -> 0.15 | G59: =F59+H72 -> 0.175 | H59: =G59+H72 -> 0.2
B60: Year | C60: Calf | D60: NPV** | E60: NPV** | F60: NPV** | G60: NPV** | H60: NPV**
B61: =B14 -> 2017 | C61: =D14 -> 1 | D61: =SUMPRODUCT(AD$14:AD14,N$14:N14)+IF(B14>=G$5,G$6*G14/100*(X14*(1-N$4-X$12))/G$3,0)*N14 -> 827.8996862 | E61: =SUMPRODUCT(AE$14:AE14,N$14:N14)+IF(B14>=G$5,G$6*G14/100*(Y14*(1-N$4-Y$12))/G$3,0)*N14 -> 827.8996862 | F61: =SUMPRODUCT(AF$14:AF14,N$14:N14)+IF(B14>=G$5,G$6*G14/100*(Z14*(1-N$4-Z$12))/G$3,0)*N14 -> 827.8996862 | G61: =SUMPRODUCT(AG$14:AG14,N$14:N14)+IF(B14>=G$5,G$6*G14/100*(AA14*(1-N$4-AA$12))/G$3,0)*N14 -> 827.8996862 | H61: =SUMPRODUCT(AH$14:AH14,N$14:N14)+IF(B14>=G$5,G$6*G14/100*(AB14*(1-N$4-AB$12))/G$3,0)*N14 -> 827.8996862
B62: =+B61+1 -> 2018 | C62: =D15 -> 2 | D62: =SUMPRODUCT(AD$14:AD15,N$14:N15)+IF(B15>=G$5,G$6*G15/100*(X15*(1-N$4-X$12))/G$3,0)*N15 -> 714.6911813 | E62: =SUMPRODUCT(AE$14:AE15,N$14:N15)+IF(B15>=G$5,G$6*G15/100*(Y15*(1-N$4-Y$12))/G$3,0)*N15 -> 717.8534301 | F62: =SUMPRODUCT(AF$14:AF15,N$14:N15)+IF(B15>=G$5,G$6*G15/100*(Z15*(1-N$4-Z$12))/G$3,0)*N15 -> 721.0156788 | G62: =SUMPRODUCT(AG$14:AG15,N$14:N15)+IF(B15>=G$5,G$6*G15/100*(AA15*(1-N$4-AA$12))/G$3,0)*N15 -> 724.1779275 | H62: =SUMPRODUCT(AH$14:AH15,N$14:N15)+IF(B15>=G$5,G$6*G15/100*(AB15*(1-N$4-AB$12))/G$3,0)*N15 -> 727.3401763
B63: 2019 | C63: 3 | D63: =SUMPRODUCT(AD$14:AD16,N$14:N16)+IF(B16>=G$5,G$6*G16/100*(X16*(1-N$4-X$12))/G$3,0)*N16 -> 611.6700043 | E63: =SUMPRODUCT(AE$14:AE16,N$14:N16)+IF(B16>=G$5,G$6*G16/100*(Y16*(1-N$4-Y$12))/G$3,0)*N16 -> 620.5072437 | F63: =SUMPRODUCT(AF$14:AF16,N$14:N16)+IF(B16>=G$5,G$6*G16/100*(Z16*(1-N$4-Z$12))/G$3,0)*N16 -> 629.1837186 | G63: =SUMPRODUCT(AG$14:AG16,N$14:N16)+IF(B16>=G$5,G$6*G16/100*(AA16*(1-N$4-AA$12))/G$3,0)*N16 -> 637.6994288 | H63: =SUMPRODUCT(AH$14:AH16,N$14:N16)+IF(B16>=G$5,G$6*G16/100*(AB16*(1-N$4-AB$12))/G$3,0)*N16 -> 646.0543744
B64: 2020 | C64: 4 | D64: =SUMPRODUCT(AD$14:AD17,N$14:N17)+IF(B17>=G$5,G$6*G17/100*(X17*(1-N$4-X$12))/G$3,0)*N17 -> 543.4192672 | E64: =SUMPRODUCT(AE$14:AE17,N$14:N17)+IF(B17>=G$5,G$6*G17/100*(Y17*(1-N$4-Y$12))/G$3,0)*N17 -> 557.8175717 | F64: =SUMPRODUCT(AF$14:AF17,N$14:N17)+IF(B17>=G$5,G$6*G17/100*(Z17*(1-N$4-Z$12))/G$3,0)*N17 -> 571.7445206 | G64: =SUMPRODUCT(AG$14:AG17,N$14:N17)+IF(B17>=G$5,G$6*G17/100*(AA17*(1-N$4-AA$12))/G$3,0)*N17 -> 585.2090391 | H64: =SUMPRODUCT(AH$14:AH17,N$14:N17)+IF(B17>=G$5,G$6*G17/100*(AB17*(1-N$4-AB$12))/G$3,0)*N17 -> 598.2200521
B65: 2021 | C65: 5 | D65: =SUMPRODUCT(AD$14:AD18,N$14:N18)+IF(B18>=G$5,G$6*G18/100*(X18*(1-N$4-X$12))/G$3,0)*N18 -> 511.9227551 | E65: =SUMPRODUCT(AE$14:AE18,N$14:N18)+IF(B18>=G$5,G$6*G18/100*(Y18*(1-N$4-Y$12))/G$3,0)*N18 -> 529.6954987 | F65: =SUMPRODUCT(AF$14:AF18,N$14:N18)+IF(B18>=G$5,G$6*G18/100*(Z18*(1-N$4-Z$12))/G$3,0)*N18 -> 546.7181912 | G65: =SUMPRODUCT(AG$14:AG18,N$14:N18)+IF(B18>=G$5,G$6*G18/100*(AA18*(1-N$4-AA$12))/G$3,0)*N18 -> 563.0155425 | H65: =SUMPRODUCT(AH$14:AH18,N$14:N18)+IF(B18>=G$5,G$6*G18/100*(AB18*(1-N$4-AB$12))/G$3,0)*N18 -> 578.6118021
B66: 2022 | C66: 6 | D66: =SUMPRODUCT(AD$14:AD19,N$14:N19)+IF(B19>=G$5,G$6*G19/100*(X19*(1-N$4-X$12))/G$3,0)*N19 -> 470.6030425 | E66: =SUMPRODUCT(AE$14:AE19,N$14:N19)+IF(B19>=G$5,G$6*G19/100*(Y19*(1-N$4-Y$12))/G$3,0)*N19 -> 493.8331788 | F66: =SUMPRODUCT(AF$14:AF19,N$14:N19)+IF(B19>=G$5,G$6*G19/100*(Z19*(1-N$4-Z$12))/G$3,0)*N19 -> 515.7207631 | G66: =SUMPRODUCT(AG$14:AG19,N$14:N19)+IF(B19>=G$5,G$6*G19/100*(AA19*(1-N$4-AA$12))/G$3,0)*N19 -> 536.3401156 | H66: =SUMPRODUCT(AH$14:AH19,N$14:N19)+IF(B19>=G$5,G$6*G19/100*(AB19*(1-N$4-AB$12))/G$3,0)*N19 -> 555.7622464
B67: 2023 | C67: 7 | D67: =SUMPRODUCT(AD$14:AD20,N$14:N20)+IF(B20>=G$5,G$6*G20/100*(X20*(1-N$4-X$12))/G$3,0)*N20 -> 432.1121562 | E67: =SUMPRODUCT(AE$14:AE20,N$14:N20)+IF(B20>=G$5,G$6*G20/100*(Y20*(1-N$4-Y$12))/G$3,0)*N20 -> 461.3592216 | F67: =SUMPRODUCT(AF$14:AF20,N$14:N20)+IF(B20>=G$5,G$6*G20/100*(Z20*(1-N$4-Z$12))/G$3,0)*N20 -> 488.4586226 | G67: =SUMPRODUCT(AG$14:AG20,N$14:N20)+IF(B20>=G$5,G$6*G20/100*(AA20*(1-N$4-AA$12))/G$3,0)*N20 -> 513.5732726 | H67: =SUMPRODUCT(AH$14:AH20,N$14:N20)+IF(B20>=G$5,G$6*G20/100*(AB20*(1-N$4-AB$12))/G$3,0)*N20 -> 536.855253
B68: 2024 | C68: 8 | D68: =SUMPRODUCT(AD$14:AD21,N$14:N21)+IF(B21>=G$5,G$6*G21/100*(X21*(1-N$4-X$12))/G$3,0)*N21 -> 397.3651921 | E68: =SUMPRODUCT(AE$14:AE21,N$14:N21)+IF(B21>=G$5,G$6*G21/100*(Y21*(1-N$4-Y$12))/G$3,0)*N21 -> 432.8627961 | F68: =SUMPRODUCT(AF$14:AF21,N$14:N21)+IF(B21>=G$5,G$6*G21/100*(Z21*(1-N$4-Z$12))/G$3,0)*N21 -> 465.2230927 | G68: =SUMPRODUCT(AG$14:AG21,N$14:N21)+IF(B21>=G$5,G$6*G21/100*(AA21*(1-N$4-AA$12))/G$3,0)*N21 -> 494.7431744 | H68: =SUMPRODUCT(AH$14:AH21,N$14:N21)+IF(B21>=G$5,G$6*G21/100*(AB21*(1-N$4-AB$12))/G$3,0)*N21 -> 521.6943343
B69: 2025 | C69: 9 | D69: =SUMPRODUCT(AD$14:AD22,N$14:N22)+IF(B22>=G$5,G$6*G22/100*(X22*(1-N$4-X$12))/G$3,0)*N22 -> 365.9629977 | E69: =SUMPRODUCT(AE$14:AE22,N$14:N22)+IF(B22>=G$5,G$6*G22/100*(Y22*(1-N$4-Y$12))/G$3,0)*N22 -> 407.8288256 | F69: =SUMPRODUCT(AF$14:AF22,N$14:N22)+IF(B22>=G$5,G$6*G22/100*(Z22*(1-N$4-Z$12))/G$3,0)*N22 -> 445.3973536 | G69: =SUMPRODUCT(AG$14:AG22,N$14:N22)+IF(B22>=G$5,G$6*G22/100*(AA22*(1-N$4-AA$12))/G$3,0)*N22 -> 479.1517234 | H69: =SUMPRODUCT(AH$14:AH22,N$14:N22)+IF(B22>=G$5,G$6*G22/100*(AB22*(1-N$4-AB$12))/G$3,0)*N22 -> 509.5237132
B70: 2026 | C70: 10 | D70: =SUMPRODUCT(AD$14:AD23,N$14:N23)+IF(B23>=G$5,G$6*G23/100*(X23*(1-N$4-X$12))/G$3,0)*N23 -> 337.7415412 | E70: =SUMPRODUCT(AE$14:AE23,N$14:N23)+IF(B23>=G$5,G$6*G23/100*(Y23*(1-N$4-Y$12))/G$3,0)*N23 -> 385.958997 | F70: =SUMPRODUCT(AF$14:AF23,N$14:N23)+IF(B23>=G$5,G$6*G23/100*(Z23*(1-N$4-Z$12))/G$3,0)*N23 -> 428.5751654 | G70: =SUMPRODUCT(AG$14:AG23,N$14:N23)+IF(B23>=G$5,G$6*G23/100*(AA23*(1-N$4-AA$12))/G$3,0)*N23 -> 466.3137409 | H70: =SUMPRODUCT(AH$14:AH23,N$14:N23)+IF(B23>=G$5,G$6*G23/100*(AB23*(1-N$4-AB$12))/G$3,0)*N23 -> 499.8079647
B71: ** Net present value if replacement is sold in this year
B72: Increment to use for cow cull rate | H72: 0.025
B74: Values to include in chart (Calf number)
D75: Annual cow cull rate, %
B76: Calves | D76: =D59 -> 0.1 | E76: =E59 -> 0.125 | F76: =F59 -> 0.15 | G76: =G59 -> 0.175 | H76: =H59 -> 0.2
B77: 4 | C77: =B77&" calves" -> 4 calves | D77: =VLOOKUP($B77,$C$61:$H$70,2) -> 543.4192672 | E77: =VLOOKUP($B77,$C$61:$H$70,3) -> 557.8175717 | F77: =VLOOKUP($B77,$C$61:$H$70,4) -> 571.7445206 | G77: =VLOOKUP($B77,$C$61:$H$70,5) -> 585.2090391 | H77: =VLOOKUP($B77,$C$61:$H$70,6) -> 598.2200521
B78: 7 | C78: =B78&" calves" -> 7 calves | D78: =VLOOKUP($B78,$C$61:$H$70,2) -> 432.1121562 | E78: =VLOOKUP($B78,$C$61:$H$70,3) -> 461.3592216 | F78: =VLOOKUP($B78,$C$61:$H$70,4) -> 488.4586226 | G78: =VLOOKUP($B78,$C$61:$H$70,5) -> 513.5732726 | H78: =VLOOKUP($B78,$C$61:$H$70,6) -> 536.855253
B79: 10 | C79: =B79&" calves" -> 10 calves | D79: =VLOOKUP($B79,$C$61:$H$70,2) -> 337.7415412 | E79: =VLOOKUP($B79,$C$61:$H$70,3) -> 385.958997 | F79: =VLOOKUP($B79,$C$61:$H$70,4) -> 428.5751654 | G79: =VLOOKUP($B79,$C$61:$H$70,5) -> 466.3137409 | H79: =VLOOKUP($B79,$C$61:$H$70,6) -> 499.8079647

Sheet Sensitivity Table
B2: Sensitivity of results in "Net present value" tab
B3: Range NPV values are pulled from | D3: O14:O23 | E3: E35:E44 | F3: AK14:AK23 | G3: AS14:AS23
B5: Table 1. Net Present Value of Beef Replacements, Sensitivity Analysis Summary* | I5: Marginal Impacts (relative to Base Case):
C6: Number | E6: 10% Lower | F6: 10% Lower | G6: 10% Higher | I6: Costs | J6: Discount | K6: Prices | L6: Costs | M6: Discount | N6: Prices
B7: Year | C7: of Calves | D7: Base Case | E7: Cow Costs/yr | F7: Discount Rate | G7: Calf Prices | I7: $/head | J7: $/head | K7: $/head | L7: % | M7: % | N7: %
B8: ='Net present value'!B14 -> 2017 | C8: ='Net present value'!D14 -> 1 | D8: ='Net present value'!O14 -> 827.8996862 | E8: ='Net present value'!E35 -> 903.0624769 | F8: ='Net present value'!AK14 -> 833.7163116 | G8: ='Net present value'!AS14 -> 986.5524866 | I8: =E8-$D8 -> 75.1627907 | J8: =F8-$D8 -> 5.81662543 | K8: =G8-$D8 -> 158.6528005 | L8: =I8/$D8 -> 0.09078731633 | M8: =J8/$D8 -> 0.007025761124 | N8: =K8/$D8 -> 0.1916328791
B9: ='Net present value'!B15 -> 2018 | C9: ='Net present value'!D15 -> 2 | D9: ='Net present value'!O15 -> 721.0156788 | E9: ='Net present value'!E36 -> 855.8507334 | F9: ='Net present value'!AK15 -> 730.1870386 | G9: ='Net present value'!AS15 -> 929.5424171 | I9: 134.8350546 | J9: 9.171359822 | K9: 208.5267383 | L9: 0.1870071048 | M9: 0.01272005602 | N9: 0.289212488
B10: ='Net present value'!B16 -> 2019 | C10: ='Net present value'!D16 -> 3 | D10: ='Net present value'!O16 -> 629.1837186 | E10: ='Net present value'!E37 -> 811.3929999 | F10: ='Net present value'!AK16 -> 640.0328626 | G10: ='Net present value'!AS16 -> 876.8776226 | I10: 182.2092813 | J10: 10.849144 | K10: 247.693904 | L10: 0.2895963069 | M10: 0.01724320524 | N10: 0.3936750057
B11: ='Net present value'!B17 -> 2020 | C11: ='Net present value'!D17 -> 4 | D11: ='Net present value'!O17 -> 571.7445206 | E11: ='Net present value'!E38 -> 791.564531 | F11: ='Net present value'!AK17 -> 583.7118546 | G11: ='Net present value'!AS17 -> 852.1839578 | I11: 219.8200103 | J11: 11.96733396 | K11: 280.4394371 | L11: 0.384472439 | M11: 0.0209312613 | N11: 0.4904978133
B12: ='Net present value'!B18 -> 2021 | C12: ='Net present value'!D18 -> 5 | D12: ='Net present value'!O18 -> 546.7181912 | E12: ='Net present value'!E39 -> 796.3976217 | F12: ='Net present value'!AK18 -> 559.96884 | G12: ='Net present value'!AS18 -> 855.2941779 | I12: 249.6794305 | J12: 13.25064882 | K12: 308.5759867 | L12: 0.4566876218 | M12: 0.02423670738 | N12: 0.564415071
B13: ='Net present value'!B19 -> 2022 | C13: ='Net present value'!D19 -> 6 | D13: ='Net present value'!O19 -> 515.7207631 | E13: ='Net present value'!E40 -> 789.1057957 | F13: ='Net present value'!AK19 -> 529.4284734 | G13: ='Net present value'!AS19 -> 845.5155385 | I13: 273.3850325 | J13: 13.70771027 | K13: 329.7947753 | L13: 0.5301028232 | M13: 0.02657971377 | N13: 0.6394832221
B14: ='Net present value'!B20 -> 2023 | C14: ='Net present value'!D20 -> 7 | D14: ='Net present value'!O20 -> 488.4586226 | E14: ='Net present value'!E41 -> 780.663698 | F14: ='Net present value'!AK20 -> 502.2114432 | G14: ='Net present value'!AS20 -> 834.7739999 | I14: 292.2050754 | J14: 13.75282059 | K14: 346.3153773 | L14: 0.598218686 | M14: 0.02815554881 | N14: 0.7089963435
B15: ='Net present value'!B21 -> 2024 | C15: ='Net present value'!D21 -> 8 | D15: ='Net present value'!O21 -> 465.2230927 | E15: ='Net present value'!E42 -> 772.3695313 | F15: ='Net present value'!AK21 -> 478.7570116 | G15: ='Net present value'!AS21 -> 824.4746425 | I15: 307.1464387 | J15: 13.53391898 | K15: 359.2515499 | L15: 0.6602132257 | M15: 0.02909124503 | N15: 0.772213494
B16: ='Net present value'!B22 -> 2025 | C16: ='Net present value'!D22 -> 9 | D16: ='Net present value'!O22 -> 445.3973536 | E16: ='Net present value'!E43 -> 764.4058448 | F16: ='Net present value'!AK22 -> 458.5281175 | G16: ='Net present value'!AS22 -> 814.758632 | I16: 319.0084912 | J16: 13.13076391 | K16: 369.3612784 | L16: 0.7162334681 | M16: 0.02948101016 | N16: 0.8292848518
B17: ='Net present value'!B23 -> 2026 | C17: ='Net present value'!D23 -> 10 | D17: ='Net present value'!O23 -> 428.5751654 | E17: ='Net present value'!E44 -> 757.0010229 | F17: ='Net present value'!AK23 -> 441.187517 | G17: ='Net present value'!AS23 -> 805.8370159 | I17: 328.4258575 | J17: 12.61235163 | K17: 377.2618505 | L17: 0.7663203192 | M17: 0.02942856386 | N17: 0.8802699759
B19: Key Inputs Varied Across Scenarios**:
B20: Annual cow costs, $/year | D20: ='Net present value'!G7 -> 800 | E20: ='Net present value'!E33 -> 720 | F20: =D20 -> 800 | G20: =D20 -> 800
B21: Discount rate, interest rate | D21: ='Net present value'!$N9 -> 0.075 | E21: ='Net present value'!$N9 -> 0.075 | F21: 0.0675 | G21: =D21 -> 0.075
B22: Calf Price, $/cwt | C22: =B8 -> 2017 | D22: ='Net present value'!F14 -> 157.5186 | E22: =D22 -> 157.5186 | F22: =E22 -> 157.5186 | G22: ='Net present value'!AM14 -> 173.4136
C23: 2018 | D23: ='Net present value'!F15 -> 147.5266 | E23: =D23 -> 147.5266 | F23: 147.5266 | G23: ='Net present value'!AM15 -> 162.5066
C24: 2019 | D24: ='Net present value'!F16 -> 140.3446 | E24: 140.3446 | F24: 140.3446 | G24: ='Net present value'!AM16 -> 154.6906
C25: 2020 | D25: ='Net present value'!F17 -> 139.8236 | E25: 139.8236 | F25: 139.8236 | G25: ='Net present value'!AM17 -> 154.1596
C26: 2021 | D26: ='Net present value'!F18 -> 144.8426 | E26: 144.8426 | F26: 144.8426 | G26: ='Net present value'!AM18 -> 159.7226
C27: 2022 | D27: ='Net present value'!F19 -> 144.8426 | E27: 144.8426 | F27: 144.8426 | G27: ='Net present value'!AM19 -> 159.7226
C28: 2023 | D28: ='Net present value'!F20 -> 145.2636 | E28: 145.2636 | F28: 145.2636 | G28: ='Net present value'!AM20 -> 160.1436
C29: 2024 | D29: ='Net present value'!F21 -> 145.432 | E29: 145.432 | F29: 145.432 | G29: ='Net present value'!AM21 -> 160.312
C30: 2025 | D30: ='Net present value'!F22 -> 145.6846 | E30: 145.6846 | F30: 145.6846 | G30: ='Net present value'!AM22 -> 160.5646
C31: 2026 | D31: ='Net present value'!F23 -> 145.9372 | E31: 145.9372 | F31: 145.9372 | G31: ='Net present value'!AM23 -> 160.8172
B32: * NPV is Net Present Value of a replacement expected to produce the number of saleable calves listed in the "Number of Calves" column before a cow is culled for age-related reasons.
B35: ** Annual cow cost, discount rate, and calf price assumptions were varied with all other inputs set at their settings in the NET PRESENT VALUE tab.
